bitfinex/quotes_ETHUSD_20220115
["timestamp","ask_amount","ask_price","bid_price","bid_amount"]
[1642209740056,5.67490485,3315.6,3315.5,2.58169246]
[1642209740256,5.67945224,3315.6,3315.5,2.58169246]
[1642209740511,2.92945224,3315.6,3315.5,2.58169246]
[1642209740697,3.92945224,3315.6,3315.5,2.58169246]
[1642209740899,0.7543896,3315.4,3315.0,2.58169246]
[1642209741099,2.69328761,3315.3,3315.0,2.58169246]
[1642209741299,3.45052973,3315.3,3315.0,2.58169246]
[1642209741498,0.0022737,3315.2,3315.0,2.58169246]
[1642209741902,4.98370527,3315.1,3315.0,2.58169246]
[1642209742499,0.43370527,3315.1,3315.0,2.58169246]
[1642209743300,0.43370527,3315.1,3314.9,0.045463]
[1642209743700,0.00113685,3315.0,3314.9,0.045463]
[1642209747149,0.00113685,3315.0,3314.8,1.37754797]
[1642209747356,0.00113685,3315.0,3314.8,1.33208497]
[1642209750005,2.51652419,3315.0,3314.5,1.58803459]
[1642209750800,2.51652419,3315.0,3314.5,0.045463]
[1642209751200,2.51652419,3315.0,3314.5,1.27136092]
[1642209751949,2.51652419,3315.0,3314.5,0.045463]
[1642209752849,0.25328005,3314.7,3314.5,0.045463]
[1642209753052,3.11974429,3314.7,3314.4,1.54257159]
[1642209753249,5.36097429,3314.7,3314.4,1.54257159]
[1642209753451,5.36097429,3314.7,3314.5,0.00170527]
[1642209753650,7.21646424,3314.6,3314.5,0.00170527]
[1642209753851,7.64846424,3314.6,3314.3,0.00284212]
[1642209754052,0.75465,3314.5,3314.3,0.00284212]
[1642209754252,4.182,3314.4,3314.3,0.00284212]
[1642209755050,6.97822576,3314.4,3314.3,0.00284212]
[1642209755255,3.22822576,3314.4,3314.1,0.00397896]
[1642209755506,3.22822576,3314.4,3314.0,0.00454739]
[1642209758506,3.22822576,3314.4,3314.0,1.54711898]
[1642209758906,3.22822576,3314.4,3314.1,0.00397896]
[1642209759751,3.22822576,3314.4,3313.9,0.00511581]
[1642209759953,3.22822576,3314.4,3313.9,0.05057881]
[1642209760155,3.22822576,3314.4,3314.2,2.58258854]
[1642209760459,2.53628135,3314.3,3314.2,2.58258854]
[1642209760855,2.53628135,3314.3,3314.2,0.00341054]
[1642209761154,2.53628135,3314.3,3314.1,0.00397896]
[1642209762757,2.53628135,3314.3,3314.2,2.58258854]
[1642209771501,4.77767135,3314.3,3314.2,2.58258854]
[1642209771701,7.55,3314.2,3314.1,0.00397896]
[1642209771901,11.35214978,3314.2,3314.1,0.00397896]
[1642209772101,11.35214978,3314.2,3313.8,0.00568423]
[1642209772102,0.75485,3314.0,3313.8,0.00568423]
[1642209772300,3.39331527,3313.9,3313.8,0.00568423]
[1642209772501,5.01579527,3313.9,3313.8,0.00568423]
[1642209772700,4.90299527,3313.9,3313.8,0.00568423]
[1642209773303,4.90299527,3313.9,3313.3,1.54257159]
[1642209773304,2.95129973,3313.5,3313.4,0.00795793]
[1642209773501,6.40909421,3313.5,3313.4,0.00795793]
[1642209773701,6.84109421,3313.5,3313.4,0.00795793]
[1642209774651,7.14109421,3313.5,3313.4,0.00795793]
[1642209774854,7.14109421,3313.5,3313.2,0.00909477]
[1642209775051,7.89599421,3313.5,3313.2,0.00909477]
[1642209776053,0.7548937,3313.3,3313.0,0.01023162]
[1642209776255,0.7549,3313.1,3313.0,0.01023162]
[1642209776455,3.30897664,3313.1,3313.0,0.01023162]
[1642209778302,2.51032336,3313.2,3313.0,0.05569462]
[1642209778603,2.47737524,3313.2,3313.1,0.0096632]
[1642209778800,0.03611137,3313.3,3313.1,0.0551262]
[1642209779001,3.68329973,3313.5,3313.1,0.0096632]
[1642209779202,3.38329973,3313.5,3313.4,0.045463]
[1642209779505,3.38329973,3313.5,3313.4,0.05342093]
[1642209779700,3.38329973,3313.5,3313.4,0.00795793]
[1642209780102,5.9730462,3313.5,3313.2,0.00909477]
[1642209780303,5.98022186,3313.5,3313.2,0.00909477]
[1642209780503,7.03502186,3313.5,3313.1,0.0096632]
[1642209780705,6.73502186,3313.5,3313.2,0.00909477]
[1642209780903,6.73502186,3313.5,3313.1,0.0096632]
[1642209781952,7.03502186,3313.5,3313.0,0.01023162]
[1642209782352,7.78985866,3313.5,3313.0,0.01023162]
[1642209782552,7.8199967,3313.5,3313.0,0.01023162]
[1642209784755,7.8199967,3313.5,3313.1,0.045463]
[1642209784956,7.8199967,3313.5,3313.0,0.01023162]
[1642209784957,0.28298655,3313.3,3313.0,0.01023162]
[1642209785160,0.28298655,3313.3,3313.2,0.00909477]
[1642209785357,0.28298655,3313.3,3313.0,0.01023162]
[1642209787512,0.75487,3313.2,3313.0,0.01023162]
[1642209787811,4.08165324,3313.2,3313.0,0.01023162]
[1642209788816,2.495871,3313.1,3313.0,0.01023162]
[1642209789655,2.927871,3313.1,3313.0,0.01023162]
[1642209790256,3.527871,3313.1,3312.9,0.01080004]
[1642209790461,7.3422829,3313.0,3312.9,0.01080004]
[1642209791057,3.0422829,3313.0,3312.9,0.01080004]
[1642209791258,3.0422829,3313.0,3312.7,0.01193689]
[1642209791259,4.5523359,3313.0,3312.7,0.01193689]
[1642209791462,1.51006,3312.9,3312.7,0.01193689]
[1642209791659,2.98549455,3312.8,3312.7,0.01193689]
[1642209792260,3.71749455,3312.8,3312.5,0.01307374]
[1642209792460,0.75506,3312.6,3312.3,0.01421058]
[1642209792662,2.74059204,3312.5,3312.1,0.01534743]
[1642209793109,1.47078562,3312.4,3312.1,0.01534743]
[1642209793503,2.48429779,3312.3,3311.9,0.06194728]
[1642209793705,1.50985093,3312.4,3311.9,0.06194728]
[1642209793706,1.50985093,3312.4,3312.0,0.01591586]
[1642209793904,2.52497961,3312.3,3312.0,0.01591586]
[1642209794106,2.52497961,3312.3,3312.2,2.58370264]
[1642209794304,1.50985093,3312.4,3312.2,2.58370264]
[1642209794503,0.75508,3312.3,3312.2,2.59848165]
[1642209794705,1.47078562,3312.4,3312.3,0.01421058]
[1642209794907,1.47078562,3312.4,3312.2,2.64394465]
[1642209795106,1.47078562,3312.4,3312.3,0.01421058]
[1642209795506,1.49796241,3312.2,3312.1,2.62916564]
[1642209795906,1.49796241,3312.2,3312.1,2.63030249]
[1642209796106,1.49796241,3312.2,3312.1,0.04659985]
[1642209796507,1.49796241,3312.2,3312.1,0.00113685]
[1642209797355,1.49796241,3312.2,3312.1,0.045463]
[1642209798958,1.49796241,3312.2,3312.1,5.045463]
[1642209801912,1.49796241,3312.2,3312.1,0.045463]
[1642209802714,1.49796241,3312.2,3311.9,0.0477367]
[1642209803110,1.49796241,3312.2,3312.0,0.00170528]
[1642209803809,2.57740239,3312.1,3312.0,0.00170528]
[1642209804009,1.49796241,3312.2,3312.0,0.00170528]
[1642209804256,1.49796241,3312.2,3311.9,0.045463]
[1642209804459,1.49796241,3312.2,3311.8,0.04830512]
[1642209804655,1.49796241,3312.2,3312.0,0.00170528]
[1642209804856,1.49796241,3312.2,3311.9,0.0477367]
[1642209805158,2.48776634,3312.1,3312.0,0.00170528]
[1642209805557,2.48788398,3312.1,3312.0,0.00170528]
[1642209805755,2.25306241,3312.2,3312.0,0.00170528]
[1642209805955,2.25306241,3312.2,3311.9,0.0022737]
[1642209806155,1.49796241,3312.2,3311.9,0.0477367]
[1642209806556,1.49796241,3312.2,3312.0,0.00170528]
[1642209807157,1.49796241,3312.2,3311.8,0.04830512]
[1642209807355,1.49796241,3312.2,3311.9,0.0477367]
[1642209807755,1.49796241,3312.2,3312.0,0.00170528]
[1642209808203,1.49796241,3312.2,3312.0,2.31967809]
[1642209812360,1.49796241,3312.2,3312.0,4.90352293]
[1642209816406,1.49796241,3312.2,3312.0,0.00170528]
[1642209816906,1.49796241,3312.2,3312.0,4.90352293]
[1642209817508,2.25306241,3312.2,3312.0,4.90352293]
[1642209817905,2.25306241,3312.2,3312.0,2.58555012]
[1642209819109,2.25306241,3312.2,3312.1,2.58384484]
[1642209820160,2.25306241,3312.2,3312.0,2.58555012]
[1642209820557,1.49796241,3312.2,3312.0,2.58555012]
[1642209822260,2.25306241,3312.2,3312.0,2.58555012]
[1642209823109,2.25306241,3312.2,3312.0,1.58555012]
[1642209823307,2.25306241,3312.2,3311.9,0.045463]
[1642209825808,2.25306241,3312.2,3312.0,0.045463]
[1642209826009,2.25306241,3312.2,3311.7,0.045463]
[1642209826209,2.25306241,3312.2,3311.6,1.58891706]
[1642209826407,2.30354576,3312.1,3311.8,0.00113684]
[1642209827456,2.30354576,3312.1,3311.6,0.00227369]
[1642209827657,2.30354576,3312.1,3311.6,0.04773669]
[1642209828062,2.30354576,3312.1,3311.7,0.00170527]
[1642209828658,3.04564479,3312.2,3311.7,0.00170527]
[1642209828860,5.3628855,3312.2,3311.7,0.00170527]
[1642209829059,3.00819631,3312.2,3311.7,0.00170527]
[1642209829262,3.04808492,3312.2,3311.7,0.00170527]
[1642209829661,3.00819631,3312.2,3311.7,0.00170527]
[1642209829861,5.31204343,3312.2,3311.7,0.00170527]
[1642209830061,3.00819631,3312.2,3311.7,0.00170527]
[1642209830518,3.00819631,3312.2,3311.8,0.045463]
[1642209831708,5.38613937,3312.2,3311.7,0.00170527]
[1642209832308,5.38613937,3312.2,3311.5,0.00284211]
[1642209833310,5.38613937,3312.2,3311.5,0.04830511]
[1642209833508,3.0441746,3312.2,3311.5,0.04830511]
[1642209833710,3.0441746,3312.2,3311.6,0.00227369]
[1642209833910,5.35305622,3312.2,3311.6,0.00227369]
[1642209835558,5.33406942,3312.2,3311.6,0.00227369]
[1642209835958,0.75517,3311.9,3311.6,0.00227369]
[1642209836358,0.75517,3311.9,3311.6,1.54572775]
[1642209836757,0.75517,3311.9,3311.7,0.00170527]
[1642209837157,7.03769677,3311.8,3311.7,0.00170527]
[1642209837360,6.05,3311.7,3311.6,1.21360446]
[1642209837558,6.05,3311.7,3311.4,2.31797281]
[1642209837559,6.8,3311.6,3311.4,2.31797281]
[1642209837756,2.83709756,3311.5,3311.4,2.31797281]
[1642209838014,3.13709756,3311.5,3311.4,2.31797281]
[1642209838208,0.3,3311.5,3311.4,2.31797281]
[1642209838412,0.3,3311.5,3311.1,4.4373]
[1642209838413,1.12378448,3311.4,3311.1,4.4373]
[1642209838611,1.51078,3311.3,3311.0,2.31797281]
[1642209838807,1.51078,3311.3,3311.2,0.00284211]
[1642209839808,4.27929189,3311.3,3311.2,0.00284211]
[1642209840209,4.34991546,3311.3,3311.2,0.00284211]
[1642209840409,4.64991546,3311.3,3311.2,0.00284211]
[1642209840610,0.7554185,3311.2,3311.0,0.00397896]
[1642209840810,0.7554185,3311.2,3310.6,2.31797281]
[1642209840811,0.75544,3311.0,3310.8,0.00511581]
[1642209841014,2.49122671,3310.9,3310.8,0.00511581]
[1642209841412,2.49122671,3310.9,3310.7,0.00568423]
[1642209842058,1.5482085,3311.0,3310.6,0.00625265]
[1642209842259,2.46063727,3310.9,3310.6,0.00625265]
[1642209842462,0.75544,3311.0,3310.6,0.00625265]
[1642209843060,0.75544,3311.0,3310.6,0.045463]
[1642209843261,2.47769771,3310.9,3310.5,0.00682108]
[1642209843459,2.47769771,3310.9,3310.7,0.00568423]
[1642209843666,2.47769771,3310.9,3310.7,2.58482162]
[1642209844062,2.47769771,3310.9,3310.8,0.00511581]
[1642209844862,2.47769771,3310.9,3310.7,0.00568423]
[1642209845163,4.082,3310.8,3310.7,0.00568423]
[1642209845364,7.06170355,3310.8,3310.7,0.00568423]
[1642209845609,7.36170355,3310.8,3310.7,0.00568423]
[1642209846213,7.36170355,3310.8,3310.5,0.00682108]
[1642209846410,0.75552,3310.7,3310.5,0.00682108]
[1642209846610,3.14231972,3310.6,3310.5,0.00682108]
[1642209847211,3.14231972,3310.6,3310.5,1.55781393]
[1642209847810,3.14231972,3310.6,3310.5,0.00682108]
[1642209849011,3.44231972,3310.6,3310.5,0.00682108]
[1642209849259,4.55671972,3310.6,3310.5,0.00682108]
[1642209849459,4.55591972,3310.6,3310.5,0.00682108]
[1642209849658,4.44231972,3310.6,3310.5,0.00682108]
[1642209850161,4.55591972,3310.6,3310.5,0.00682108]
[1642209850360,4.44231972,3310.6,3310.5,0.00682108]
[1642209850760,4.44231972,3310.6,3310.1,1.55099285]
[1642209850761,4.44231972,3310.6,3310.2,0.00852635]
[1642209850962,0.75556,3310.4,3310.2,0.00852635]
[1642209851261,4.36987083,3310.3,3310.2,0.00852635]
[1642209851464,4.36987083,3310.3,3310.2,1.5595192]
[1642209851661,4.36987083,3310.3,3310.2,1.6049822]
[1642209851862,4.36987083,3310.3,3310.2,1.5595192]
[1642209852660,1.84054965,3310.3,3310.2,1.5595192]
[1642209853610,1.84054965,3310.3,3310.2,0.00852635]
[1642209853812,7.35,3310.2,3309.5,2.69140339]
[1642209854019,7.35,3310.2,3309.3,3.86328801]
[1642209854020,3.92854663,3310.1,3309.3,3.86328801]
[1642209854214,0.75579,3309.7,3309.6,0.00341054]
[1642209854411,4.3935739,3309.7,3309.6,0.00341054]
[1642209854611,1.777953,3309.7,3309.6,0.00341054]
[1642209854812,1.777953,3309.7,3309.5,0.00397896]
[1642209856213,2.91712361,3309.6,3309.3,0.00511581]
[1642209856414,1.1877863,3309.5,3309.2,3.81840382]
[1642209856617,3.28148519,3309.4,3309.0,3.0234]
[1642209856859,1.29927985,3309.3,3308.8,4.264]
[1642209857060,1.29927985,3309.3,3309.1,0.00113685]
[1642209857662,1.29927985,3309.3,3308.6,0.00397896]
[1642209858563,2.51310439,3309.2,3308.6,0.00397896]
[1642209859368,1.9762949,3309.5,3308.6,0.00397896]
[1642209859567,0.43313685,3309.5,3308.6,0.00397896]
[1642209859767,0.43313685,3309.5,3309.4,6.28528536]
[1642209859768,0.00113685,3309.5,3309.4,6.28528536]
[1642209861612,0.00113685,3309.5,3309.0,0.01241875]
[1642209862014,0.00113685,3309.5,3309.0,17.65241875]
[1642209862213,0.00113685,3309.5,3309.2,17.64]
[1642209862615,2.8618922,3311.0,3309.9,0.0033737]
[1642209862616,0.121079,3311.0,3309.9,0.0033737]
[1642209862813,0.121079,3311.0,3310.1,0.01277024]
[1642209863014,0.00625266,3310.6,3310.5,1.26984974]
[1642209863212,0.00625266,3310.6,3310.5,2.16574974]
[1642209864013,0.00625266,3310.6,3310.5,0.8959]
[1642209864262,0.00625266,3310.6,3310.5,2.58546168]
[1642209864464,0.121079,3311.0,3310.5,2.58546168]
[1642209864960,1.45660296,3310.8,3310.5,2.58546168]
[1642209865161,1.45660296,3310.8,3310.4,3.87759066]
[1642209865561,1.45660296,3310.8,3310.6,2.58546168]
[1642209865861,0.00170527,3310.9,3310.6,2.58546168]
[1642209866263,0.00113684,3310.8,3310.4,6.46305234]
[1642209866762,0.00397896,3311.3,3310.4,6.46305234]
[1642209867164,1.33145309,3310.9,3310.4,6.46305234]
[1642209867563,0.00113684,3310.8,3310.4,6.46305234]
[1642209867764,0.00113684,3310.8,3310.4,3.87759066]
[1642209869409,0.00113684,3310.8,3310.5,3.87759066]
[1642209870012,0.00113684,3310.8,3310.4,0.00113685]
[1642209870613,0.00113684,3310.8,3310.4,3.87872751]
[1642209871956,0.00113684,3310.8,3310.4,6.46418919]
[1642209872260,0.00113684,3310.8,3310.4,3.87872751]
[1642209872456,0.00113684,3310.8,3310.5,2.87395973]
[1642209872657,0.00113684,3310.8,3310.4,3.87872751]
[1642209873258,0.00113684,3310.8,3310.5,3.87759066]
[1642209874961,0.00113684,3310.8,3310.6,3.87759066]
[1642209875808,0.00113684,3310.8,3310.7,3.87759066]
[1642209877312,0.00113684,3310.8,3310.4,3.87872751]
[1642209878709,0.00113684,3310.8,3310.4,0.00113685]
[1642209879668,0.00113684,3310.8,3310.4,1.55218175]
[1642209880072,0.00113684,3310.8,3310.5,3.33139002]
[1642209880272,0.00113684,3310.8,3310.5,1.9206]
[1642209880671,0.00113684,3310.8,3310.5,19.5606]
[1642209881072,0.00113684,3310.8,3310.7,7.7010449]
[1642209881672,0.00113684,3310.8,3310.7,1.5510449]
[1642209882272,0.00113684,3310.8,3310.7,4.13650658]
[1642209883049,0.00113684,3310.8,3310.6,4.13650658]
[1642209886135,0.00113684,3310.8,3310.6,2.58546168]
[1642209897466,1.38339573,3311.4,3310.6,2.58546168]
[1642209897865,0.00397896,3311.3,3310.6,2.58546168]
[1642209898322,3.88043132,3311.4,3310.6,2.58546168]
[1642209898323,0.00341054,3311.2,3310.6,2.58546168]
[1642209898713,0.00284211,3311.1,3310.6,2.58546168]
[1642209899114,0.00227369,3311.0,3310.6,2.58546168]
[1642209899515,0.00170527,3310.9,3310.6,2.58546168]
[1642209899916,0.00113684,3310.8,3310.6,2.58546168]
[1642209900317,0.00284211,3311.1,3310.6,2.58546168]
[1642209900516,2.47064941,3311.1,3310.6,2.58546168]
[1642209900715,0.00227369,3311.0,3310.6,2.58546168]
[1642209901115,2.49576703,3311.1,3310.6,2.58546168]
[1642209901116,0.00170527,3310.9,3310.6,2.58546168]
[1642209901515,0.00113684,3310.8,3310.6,2.58546168]
[1642209901765,0.00113684,3310.8,3310.5,1.2479]
[1642209901967,2.47961153,3311.1,3310.5,1.2479]
[1642209902363,0.00227369,3311.0,3310.5,1.2479]
[1642209902763,0.00170527,3310.9,3310.5,1.2479]
[1642209903164,0.00113684,3310.8,3310.6,2.58503404]
[1642209903566,0.00284211,3311.1,3310.6,2.58503404]
[1642209903964,0.00227369,3311.0,3310.6,2.58503404]
[1642209904364,0.00170527,3310.9,3310.6,2.58503404]
[1642209904766,0.00113684,3310.8,3310.6,2.58503404]
[1642209905166,0.00341054,3311.2,3310.6,2.58503404]
[1642209905618,0.00284211,3311.1,3310.6,2.58503404]
[1642209906018,0.00227369,3311.0,3310.6,2.58503404]
[1642209906419,0.00170527,3310.9,3310.6,2.58503404]
[1642209906819,0.00113684,3310.8,3310.6,2.58503404]
[1642209910570,0.00113684,3310.8,3310.6,4.13607894]
[1642209912170,0.00113684,3310.8,3310.7,1.5510449]
[1642209913017,0.00113684,3310.8,3310.6,4.13607894]
[1642209913619,0.00113684,3310.8,3310.7,2.58503404]
[1642209914624,0.00113684,3310.8,3310.6,2.58503404]
[1642209915924,0.045463,3310.7,3310.6,2.58503404]
[1642209916766,0.00113684,3310.8,3310.6,2.58503404]
[1642209933974,0.045463,3310.7,3310.6,2.58503404]
[1642209934978,0.477463,3310.7,3310.6,2.58503404]
[1642209935175,3.38256796,3310.7,3310.6,2.58503404]
[1642209935722,4.13803796,3310.7,3310.6,2.58503404]
[1642209936121,4.13803796,3310.7,3309.9,1.5510449]
[1642209936321,0.045463,3310.3,3309.9,1.5510449]
[1642209936522,0.045463,3310.0,3309.9,1.5510449]
[1642209936922,0.045463,3310.0,3309.9,1.55502387]
[1642209937325,1.46043718,3310.0,3309.9,1.55502387]
[1642209937725,1.46043718,3310.0,3309.9,0.00397897]
[1642209938130,1.46043718,3310.0,3309.7,0.00511581]
[1642209938426,2.4813335,3309.9,3309.7,0.00511581]
[1642209938625,1.46043718,3310.0,3309.7,0.00511581]
[1642209939026,2.48202526,3309.9,3309.7,0.00511581]
[1642209939468,1.46043718,3310.0,3309.7,0.00511581]
[1642209939668,1.41497418,3310.0,3309.7,0.00511581]
[1642209940569,1.41497418,3310.0,3309.7,1.55616071]
[1642209940871,1.41497418,3310.0,3309.8,0.00454739]
[1642209941369,1.41497418,3310.0,3309.8,1.55559229]
[1642209941569,1.46043718,3310.0,3309.8,1.55559229]
[1642209942171,0.045463,3310.0,3309.8,0.00454739]
[1642209942369,0.045463,3310.2,3309.8,0.00454739]
[1642209942770,0.432,3310.4,3309.8,0.00454739]
[1642209943022,0.432,3310.4,3309.8,1.55559229]
[1642209943823,1.55334562,3310.2,3309.8,1.55559229]
[1642209944525,1.59880862,3310.2,3309.8,1.55559229]
[1642209945525,1.55334562,3310.2,3309.8,0.00454739]
[1642209946527,1.55334562,3310.2,3309.8,1.55559229]
[1642209946786,1.59880862,3310.2,3309.8,1.55559229]
[1642209947578,1.59880862,3310.2,3309.8,0.00454739]
[1642209947978,1.59880862,3310.2,3309.6,0.00568424]
[1642209947979,2.66754893,3310.1,3309.6,0.00568424]
[1642209948178,1.59880862,3310.2,3309.6,0.00568424]
[1642209948179,0.045463,3309.7,3309.6,0.00568424]
[1642209948378,0.045463,3310.0,3309.6,0.00568424]
[1642209949182,1.59880862,3310.2,3309.6,0.00568424]
[1642209950389,0.045463,3310.2,3309.6,0.00568424]
[1642209950619,0.41443184,3310.4,3309.6,0.00568424]
[1642209951122,0.41443184,3310.4,3310.3,1.12901439]
[1642209951321,0.74566974,3311.0,3310.3,1.12901439]
[1642209951522,0.74566974,3311.0,3310.7,1.51810091]
[1642209951720,0.00170527,3310.9,3310.4,0.00113685]
[1642209952120,0.04659984,3310.8,3310.4,0.00113685]
[1642209952521,0.045463,3310.5,3310.4,0.00113685]
[1642209952721,0.045463,3310.5,3310.4,1.49490735]
[1642209953323,0.04659984,3310.8,3310.4,1.49490735]
[1642209953524,0.045463,3310.6,3310.4,1.49490735]
[1642209954375,0.045463,3310.6,3310.5,2.58546601]
[1642209954574,0.00113684,3310.8,3310.5,2.58546601]
[1642209956575,0.04659984,3310.8,3310.5,2.58546601]
[1642209956776,0.00113684,3310.8,3310.5,2.58546601]
[1642209962471,0.04659984,3310.8,3310.5,2.58546601]
[1642209962871,0.045463,3310.6,3310.5,2.58546601]
[1642209964074,0.045463,3310.6,3310.5,3.89573628]
[1642209964275,0.04659984,3310.8,3310.5,3.89573628]
[1642209964874,0.04659984,3310.8,3310.5,2.58546601]
[1642209965623,0.045463,3310.6,3310.5,2.58546601]
[1642209967622,0.045463,3310.6,3310.4,2.58660286]
[1642209967822,0.47859984,3310.8,3310.4,2.58660286]
[1642209967823,2.74685158,3310.7,3310.4,2.58660286]
[1642209968422,0.045463,3310.5,3310.4,2.58660286]
[1642209969473,0.045463,3310.5,3310.4,0.00113685]
[1642209969977,0.045463,3310.5,3310.2,0.0022737]
[1642209971878,0.00113684,3310.8,3310.2,2.58773971]
[1642209972276,0.00113684,3310.8,3310.3,0.00170527]
[1642209972676,0.00113684,3310.8,3310.3,1.55275017]
[1642209973126,0.00113684,3310.8,3310.4,0.00113685]
[1642209973327,0.00113684,3310.8,3310.4,0.45429685]
[1642209974125,0.00113684,3310.8,3310.5,2.58546601]
[1642209974325,0.04659984,3310.8,3310.5,2.58546601]
[1642209975525,0.045463,3310.6,3310.5,2.58546601]
[1642209975726,0.045463,3310.6,3310.4,0.00113685]
[1642209976125,0.045463,3310.6,3310.3,0.00170527]
[1642209978685,0.045463,3310.5,3310.3,0.00170527]
[1642209978884,0.045463,3310.6,3310.3,0.00170527]
[1642209979087,0.045463,3310.7,3310.3,0.00170527]
[1642209979687,0.04659984,3310.8,3310.3,0.45488527]
[1642209979885,0.00113684,3310.8,3310.3,0.45488527]
[1642209980089,0.00113684,3310.8,3310.4,0.00113685]
[1642209980826,0.00113684,3310.8,3310.4,2.58660286]
[1642209982027,0.045463,3311.1,3310.4,2.58660286]
[1642209982427,0.00227369,3311.0,3310.4,2.58660286]
[1642209982827,0.00170527,3310.9,3310.4,2.58660286]
[1642209983034,0.04716827,3310.9,3310.4,2.58660286]
[1642209983228,0.00113684,3310.8,3310.4,2.58660286]
[1642209984028,0.00113684,3310.8,3310.4,0.00113685]
[1642209985275,3.3263506,3311.1,3310.4,0.00113685]
[1642209985477,3.3263506,3311.1,3310.4,0.00227369]
[1642209985478,0.045463,3311.0,3310.4,0.00227369]
[1642209985677,0.04659985,3311.0,3310.4,0.00227369]
[1642209986680,0.04659985,3311.0,3310.3,0.00284211]
[1642209986883,0.04659985,3311.0,3310.3,1.55388701]
[1642209987280,0.04659985,3311.0,3310.4,0.00227369]
[1642209990826,0.04659985,3311.0,3310.3,0.00284211]
[1642209991427,0.045463,3310.7,3310.3,0.00284211]
[1642209991882,0.045463,3310.5,3310.3,0.00284211]
[1642209992082,0.00113685,3311.0,3310.3,0.00284211]
[1642209992379,0.045463,3310.7,3310.3,0.00284211]
[1642209992577,0.045463,3310.9,3310.3,0.00284211]
[1642209993176,0.045463,3310.7,3310.3,0.00284211]
[1642209993477,0.045463,3310.5,3310.3,0.00284211]
[1642209993679,0.045463,3310.7,3310.3,0.00284211]
[1642209993876,0.04659985,3311.0,3310.3,0.00284211]
[1642209994077,2.53064806,3311.0,3310.3,0.00284211]
[1642209995281,0.045463,3310.6,3310.3,0.00284211]
[1642209995522,0.045463,3310.5,3310.3,0.00284211]
[1642209995724,2.51146191,3310.8,3310.3,0.00284211]
[1642209995922,0.045463,3310.7,3310.3,0.00284211]
[1642209996323,0.045463,3310.4,3310.3,0.00284211]
[1642209996522,1.34799094,3310.4,3310.3,0.00284211]
[1642209997124,1.30252794,3310.4,3310.3,0.00284211]
[1642209997526,2.49712877,3310.8,3310.3,0.00284211]
[1642209997727,2.49712877,3310.8,3310.1,4.13651091]
[1642209997728,0.045463,3310.9,3310.2,17.64341054]
[1642209997926,0.00113685,3311.0,3310.2,20.84075025]
[1642209998130,0.00113685,3311.0,3310.3,0.00284211]
[1642209998924,0.00113685,3311.0,3310.5,1.5510449]
[1642209999127,0.00113685,3311.0,3310.6,3.00540683]
[1642209999380,0.00113685,3311.0,3310.6,3.00654367]
[1642210000381,0.00113685,3311.0,3310.7,19.08623207]
[1642210000582,0.00113685,3311.0,3310.8,2.95743603]
[1642210000781,0.00113685,3311.0,3310.8,20.59743603]
[1642210000980,0.00113685,3311.0,3310.8,2.95743603]
[1642210001282,0.00113685,3311.0,3310.8,1.21402725]
[1642210001480,0.00113685,3311.0,3310.8,4.0547355]
[1642210001682,0.00113685,3311.0,3310.9,5.43546601]
[1642210001881,0.00113685,3311.0,3310.9,2.58546601]
[1642210002280,0.00113685,3311.0,3310.9,5.45683227]
[1642210003130,0.00113685,3311.0,3310.9,23.09683227]
[1642210004928,0.00113685,3311.0,3310.9,26.97423573]
[1642210007576,0.00113685,3311.0,3310.9,24.10286947]
[1642210011730,0.00113685,3311.0,3310.9,25.65379028]
[1642210012333,0.00113685,3311.0,3310.9,6.46286947]
[1642210012334,0.04659985,3311.0,3310.9,6.46286947]
[1642210012533,0.00113685,3311.0,3310.9,6.46286947]
[1642210013634,0.00113685,3311.0,3310.9,24.10286947]
[1642210014283,0.00113685,3311.0,3310.9,20.22546601]
[1642210015279,0.00113685,3311.0,3310.9,24.10286947]
[1642210015681,0.045463,3311.5,3310.9,24.10286947]
[1642210015880,0.045463,3311.6,3311.0,0.45305]
[1642210016080,0.00341054,3311.4,3311.0,0.45305]
[1642210016480,0.00284212,3311.3,3311.0,0.45305]
[1642210016881,0.0022737,3311.2,3311.1,5.43546601]
[1642210017082,0.0022737,3311.2,3311.1,2.58546601]
[1642210018528,0.0022737,3311.2,3311.1,5.23546601]
[1642210019130,0.0022737,3311.2,3311.1,2.65]
[1642210020031,0.0022737,3311.2,3311.1,5.23546601]
[1642210026534,0.0022737,3311.2,3311.1,22.87546601]
[1642210026732,0.0022737,3311.2,3311.1,5.23546601]
[1642210027432,0.0022737,3311.2,3311.1,9.11286947]
[1642210028033,0.0022737,3311.2,3311.1,26.75286947]
[1642210028633,0.0022737,3311.2,3311.1,22.87546601]
[1642210029478,0.0022737,3311.2,3311.1,2.58546601]
[1642210033432,0.0022737,3311.2,3311.0,2.58546601]
[1642210033831,0.00170527,3311.1,3311.0,2.58546601]
[1642210034231,0.0022737,3311.1,3311.0,2.58546601]
[1642210042032,0.0022737,3311.1,3311.0,6.46272507]
[1642210045980,0.0477367,3311.1,3311.0,6.46272507]
[1642210047380,0.0477367,3311.1,3310.9,2.58546601]
[1642210047580,0.0022737,3311.1,3311.0,1.5215482]
[1642210047784,0.045463,3311.1,3311.0,1.5215482]
[1642210049433,0.045463,3311.1,3311.0,4.10701421]
[1642210052677,0.045463,3311.1,3311.0,2.58546601]
[1642210053579,0.045463,3311.1,3310.9,2.58546601]
[1642210053978,0.00113685,3311.0,3310.9,2.58546601]
[1642210054581,0.04659985,3311.0,3310.9,2.58546601]
[1642210056026,0.04659985,3311.0,3310.9,3.98787456]
[1642210056227,0.04659985,3311.0,3310.9,1.40240855]
[1642210056428,0.04659985,3311.0,3310.6,2.58546601]
[1642210056630,0.045463,3310.7,3310.6,2.58546601]
[1642210057228,3.045463,3310.7,3310.4,1.5508716]
[1642210057428,1.48732429,3310.5,3310.4,1.5508716]
[1642210057630,4.19720455,3310.5,3310.4,1.5508716]
[1642210058230,1.48732429,3310.5,3310.4,1.5508716]
[1642210058430,4.0437895,3310.5,3310.0,1.47822734]
[1642210058630,4.0437895,3310.5,3309.8,2.7388716]
[1642210058631,0.045463,3310.1,3309.8,2.7388716]
[1642210058830,0.045463,3309.9,3309.8,2.7388716]
[1642210059290,0.045463,3309.9,3309.8,2.74455583]
[1642210059480,0.045463,3309.9,3309.8,1.19368423]
[1642210059677,0.045463,3309.9,3309.8,2.46019417]
[1642210061480,0.045463,3310.1,3309.8,2.46019417]
[1642210061681,2.51386547,3310.4,3309.8,2.46019417]
[1642210061881,0.045463,3310.3,3309.9,0.00511581]
[1642210062280,0.045463,3310.3,3309.8,2.40962575]
[1642210062481,0.00170527,3310.2,3309.8,2.40962575]
[1642210062880,0.00113685,3310.1,3309.8,2.40962575]
[1642210063329,0.00170527,3310.2,3309.8,2.40962575]
[1642210063628,0.00113685,3310.1,3309.8,2.40962575]
[1642210064128,0.00170527,3310.2,3309.8,2.40962575]
[1642210064530,0.00113685,3310.1,3309.8,2.40962575]
[1642210064931,0.00170527,3310.2,3309.8,2.40962575]
[1642210065234,0.00113685,3310.1,3309.8,2.40962575]